bitfinex/quotes_SOLUSD_20250330
["timestamp","ask_amount","ask_price","bid_price","bid_amount"]
[1743360119260,0.03,125.76,125.73,27.8373]
[1743360123551,7.15,125.76,125.73,7.9535]
[1743360123751,19.80838301,125.76,125.73,7.9535]
[1743360124454,19.80838301,125.76,125.72,27.9538]
[1743360132363,19.80838301,125.76,125.71,0.063]
[1743360134670,7.15,125.76,125.71,0.063]
[1743360139153,7.15,125.76,125.71,0.063]
[1743360144858,0.03,125.76,125.71,0.063]
[1743360148083,12.65838301,125.75,125.71,0.063]
[1743360150774,12.65838301,125.74,125.71,0.063]
[1743360151074,7.12,125.73,125.71,0.063]
[1743360161988,19.77838301,125.73,125.71,0.063]
[1743360163279,7.12,125.73,125.71,0.063]
[1743360165170,19.77838301,125.73,125.71,0.063]
[1743360166690,7.12,125.73,125.71,0.063]
[1743360168268,19.77838301,125.73,125.71,0.063]
[1743360172488,7.12,125.73,125.71,0.063]
[1743360173977,311.88074886,125.76,125.71,0.063]
[1743360174186,7.12,125.75,125.71,0.063]
[1743360181882,7.12,125.74,125.71,0.063]
[1743360191209,12.65838301,125.72,125.71,0.063]
[1743360191400,37.75093187,125.72,125.71,0.063]
[1743360191783,39.33903187,125.72,125.71,0.063]
[1743360192609,47.29313187,125.72,125.71,0.063]
[1743360195598,128.39313187,125.72,125.71,0.063]
[1743360195814,179.02666391,125.72,125.71,0.063]
[1743360196015,18.64964886,125.71,125.67,0.063]
[1743360196218,31.30803187,125.68,125.67,0.063]
[1743360196534,32.89613187,125.68,125.67,0.063]
[1743360196903,40.85283187,125.68,125.67,0.063]
[1743360198223,47.29573187,125.68,125.67,0.063]
[1743360198813,27.9579,125.66,125.65,0.063]
[1743360199031,66.38593187,125.66,125.65,0.063]
[1743360199998,18.64964886,125.65,125.64,0.063]
[1743360200202,83.52966391,125.65,125.64,0.063]
[1743360201123,91.48826391,125.65,125.64,0.063]
[1743360201844,40.85473187,125.65,125.64,0.063]
[1743360202611,91.48826391,125.65,125.64,0.063]
[1743360203235,40.85473187,125.65,125.64,0.063]
[1743360204241,91.48826391,125.65,125.64,0.063]
[1743360206341,40.85473187,125.65,125.64,0.063]
[1743360209753,91.48826391,125.65,125.64,0.063]
[1743360210128,20.0,125.63,125.61,0.063]
[1743360210328,32.65838301,125.63,125.61,0.063]
[1743360212150,243.29838301,125.63,125.61,0.063]
[1743360212450,210.64,125.63,125.61,0.063]
[1743360212646,217.76,125.63,125.61,0.063]
[1743360212854,230.41838301,125.63,125.61,0.063]
[1743360213230,257.02783187,125.63,125.61,0.063]
[1743360217045,249.06803187,125.63,125.61,0.063]
[1743360219035,217.76,125.63,125.61,0.063]
[1743360220935,217.76,125.63,125.61,8.0241]
[1743360223549,217.76,125.63,125.61,0.063]
[1743360224753,210.64,125.63,125.61,0.063]
[1743360224954,230.41838301,125.63,125.61,0.063]
[1743360225139,257.02783187,125.63,125.61,0.063]
[1743360225347,338.12783187,125.63,125.61,0.063]
[1743360229558,330.16803187,125.63,125.61,0.063]
[1743360231867,298.86,125.63,125.61,0.063]
[1743360235669,291.74,125.63,125.61,0.063]
[1743360235967,298.86,125.63,125.61,0.063]
[1743360236167,88.22,125.63,125.61,0.063]
[1743360237449,7.12,125.63,125.61,0.063]
[1743360238270,19.77838301,125.63,125.61,0.063]
[1743360240659,7.12,125.63,125.61,0.063]
[1743360242173,0.03,125.64,125.61,0.063]
[1743360242373,7.12,125.63,125.61,0.063]
[1743360250680,7.12,125.63,125.61,1.7123]
[1743360251387,7.12,125.63,125.62,8.0235]
[1743360252874,7.1,125.63,125.62,8.0235]
[1743360253280,210.69,125.64,125.62,8.0235]
[1743360253485,217.79,125.64,125.62,8.0235]
[1743360254183,210.69,125.64,125.62,8.0235]
[1743360256778,0.03,125.64,125.62,8.0235]
[1743360266599,0.03,125.64,125.62,89.0235]
[1743360277514,0.03,125.64,125.62,81.063]
[1743360277695,7.13,125.64,125.62,0.063]
[1743360284422,0.03,125.64,125.63,20.0]
[1743360284591,0.03,125.64,125.62,0.063]
[1743360284592,7.1,125.68,125.62,18.71264886]
[1743360284793,7.1,125.68,125.62,99.71264886]
[1743360285411,7.1,125.68,125.63,27.8595]
[1743360289929,7.1,125.68,125.63,27.8595]
[1743360292715,232.88818301,125.71,125.63,27.8595]
[1743360292716,210.62,125.71,125.64,18.64964886]
[1743360293023,210.62,125.71,125.66,18.64964886]
[1743360293311,9.65304476,125.72,125.67,20.0]
[1743360293497,9.65304476,125.72,125.68,20.0]
[1743360294098,0.03,125.72,125.68,20.0]
[1743360294699,0.03,125.72,125.66,27.8528]
[1743360304436,0.03,125.72,125.66,67.6427]
[1743360304725,0.03,125.72,125.67,18.64964886]
[1743360304910,0.03,125.72,125.68,27.8484]
[1743360308131,0.03,125.72,125.68,19.8917]
[1743360313449,14.25958301,125.72,125.67,7.9573]
[1743360313749,1.6012,125.72,125.67,7.9573]
[1743360315250,1.6012,125.72,125.67,27.8506]
[1743360315532,0.03,125.72,125.67,27.8506]
[1743360316461,0.03,125.72,125.67,108.8506]
[1743360317244,0.03,125.72,125.67,148.6373]
[1743360320854,0.03,125.72,125.68,18.79181043]
[1743360322033,0.03,125.72,125.7,18.64964886]
[1743360322235,0.03,125.72,125.7,81.0]
[1743360324045,0.03,125.72,125.71,7.9548]
[1743360325834,7.11,125.72,125.71,7.9548]
[1743360326453,7.11,125.72,125.69,27.8462]
[1743360328958,7.11,125.72,125.69,7.956]
[1743360331359,7.11,125.72,125.68,7.9567]
[1743360332359,7.11,125.72,125.68,27.8484]
[1743360332556,0.03,125.72,125.71,20.0]
[1743360333144,0.03,125.72,125.71,23.97282125]
[1743360333953,210.49,125.76,125.71,191.38043168]
[1743360334139,0.03,125.76,125.72,18.64964886]
[1743360335943,0.03,125.76,125.74,7.9529]
[1743360336255,0.03,125.76,125.74,88.9529]
[1743360342650,0.03,125.79,125.75,18.64964886]
[1743360342856,0.03,125.79,125.75,107.83414886]
[1743360343885,0.03,125.79,125.75,101.22204886]
[1743360344376,0.03,125.79,125.75,81.0]
[1743360344580,0.03,125.79,125.76,7.9516]
[1743360344788,7.948,125.82,125.76,7.9516]
[1743360345082,12.65838301,126.19,126.01,0.5]
[1743360345252,210.38,126.18,126.03,0.78432314]
[1743360345457,164.93656462,126.18,126.04,63.32502272]
[1743360345689,133.00391064,126.18,126.05,18.933972]
[1743360345851,133.00391064,126.18,126.09,0.14216157]
[1743360346052,1.6292,126.25,126.11,0.14216157]
[1743360346053,7.983,126.24,126.11,0.14216157]
[1743360346267,7.983,126.24,126.13,0.14216157]
[1743360346472,7.74,126.32,126.17,0.28432314]
[1743360346658,7.74,126.32,126.19,27.7358]
[1743360346870,7.76,126.31,126.23,0.5]
[1743360347070,7.76,126.3,126.23,0.5]
[1743360347281,7.76,126.29,126.23,0.5]
[1743360347490,7.76,126.28,126.24,15.96514822]
[1743360347654,210.36,126.27,126.24,15.96514822]
[1743360347855,155.21271901,126.27,126.24,15.96514822]
[1743360348293,26.40964886,126.26,126.25,15.96514822]
[1743360348664,7.78,126.26,126.25,15.96514822]
[1743360349456,7.78,126.26,126.25,4.29874822]
[1743360349688,7.76,126.26,126.25,4.29874822]
[1743360350486,7.76,126.26,126.25,25.58561252]
[1743360350684,26.40964886,126.26,126.25,25.58561252]
[1743360351572,26.40964886,126.26,126.25,24.45461252]
[1743360353183,34.32974886,126.26,126.25,17.78801252]
[1743360353401,18.64964886,126.25,126.24,46.93856719]
[1743360353585,38.64964886,126.25,126.24,40.27196719]
[1743360353787,40.10859602,126.25,126.24,40.27196719]
[1743360354591,40.10859602,126.25,126.22,23.45608081]
[1743360355106,46.57164886,126.23,126.22,23.45608081]
[1743360355597,38.64964886,126.23,126.21,23.45608081]
[1743360355800,38.64964886,126.23,126.16,81.0]
[1743360356183,46.57184886,126.23,126.16,81.0]
[1743360357506,31.44354086,126.19,126.16,81.0]
[1743360357697,7.7,126.18,126.16,81.0]
[1743360358286,31.44354086,126.21,126.17,7.9258]
[1743360358486,7.7,126.23,126.18,0.5]
[1743360358684,31.44354086,126.25,126.18,219.8]
[1743360358889,39.16354086,126.26,126.2,0.5]
[1743360359076,60.91252988,126.27,126.21,0.5]
[1743360359281,29.46898902,126.27,126.24,0.5]
[1743360359517,29.46898902,126.27,126.24,89.4212]
[1743360359817,31.44354086,126.26,126.24,81.5]
[1743360360193,60.91252988,126.27,126.24,81.5]
[1743360360395,31.44354086,126.26,126.24,81.5]
[1743360360689,31.44354086,126.26,126.24,81.0]
[1743360360894,60.91252988,126.27,126.24,81.5]
[1743360361110,29.46898902,126.27,126.24,81.5]
[1743360362116,60.91252988,126.27,126.24,81.5]
[1743360362908,60.91252988,126.27,126.24,81.0]
[1743360363108,60.91252988,126.27,126.24,81.5]
[1743360363313,29.46898902,126.27,126.24,81.5]
[1743360363483,28.96898902,126.27,126.24,81.0]
[1743360363686,28.96898902,126.27,126.24,81.5]
[1743360363920,28.96898902,126.27,126.25,0.5]
[1743360364415,0.03,126.27,126.26,0.5]
[1743360364587,0.03,126.27,126.26,219.8]
[1743360364785,0.03,126.27,126.26,238.44964886]
[1743360365117,0.03,126.4,126.31,0.5]
[1743360365419,7.7,126.37,126.33,0.5]
[1743360365706,7.7,126.37,126.33,219.27]
[1743360365887,7.7,126.37,126.33,219.77]
[1743360366291,7.7,126.37,126.34,0.5]
[1743360366603,7.7,126.37,126.33,219.77]
[1743360366784,7.71,126.4,126.35,18.64964886]
[1743360366980,7.71,126.4,126.39,0.5]
[1743360366981,0.03,126.4,126.39,0.5]
[1743360367185,0.03,126.4,126.39,80.97]
[1743360368008,18.4849004,126.44,126.4,0.5]
[1743360368009,7.68,126.43,126.4,0.5]
[1743360368222,2.8956004,126.44,126.42,0.5]
[1743360368394,2.8956004,126.44,126.43,0.5]
[1743360368713,2.8956004,126.44,126.43,80.97]
[1743360369115,2.8956004,126.44,126.43,100.11964886]
[1743360369419,1.09647697,126.47,126.46,20.5]
[1743360369603,31.67786307,126.55,126.5,0.5]
[1743360369813,31.44354086,126.53,126.5,219.27]
[1743360370104,31.44354086,126.53,126.5,219.77]
[1743360370301,31.44354086,126.54,126.5,219.77]
[1743360370506,31.44354086,126.55,126.5,219.77]
[1743360370687,15.6608,126.57,126.5,219.77]
[1743360370688,31.44354086,126.54,126.5,219.77]
[1743360370882,31.44354086,126.51,126.5,80.97]
[1743360371087,39.20354086,126.51,126.5,80.97]
[1743360371317,7.76,126.51,126.5,80.97]
[1743360371504,39.20354086,126.51,126.5,80.97]
[1743360371901,47.10804086,126.51,126.5,80.97]
[1743360372205,31.44354086,126.51,126.46,219.77]
[1743360372392,7.76,126.5,126.47,0.5]
[1743360372593,7.76,126.5,126.47,219.77]
[1743360372795,7.76,126.5,126.49,0.5]
[1743360373011,7.76,126.5,126.49,219.77]
[1743360373195,31.44354086,126.56,126.52,0.5]
[1743360373389,7.76,126.55,126.52,219.77]
[1743360373900,54.6435498,126.55,126.52,219.77]
[1743360374490,46.8835498,126.53,126.52,219.27]
[1743360375085,46.8835498,126.53,126.52,80.97]
[1743360375290,46.8835498,126.53,126.48,219.27]
[1743360375498,46.8835498,126.49,126.48,80.97]
[1743360375703,54.6435498,126.49,126.48,80.97]
[1743360376213,54.6435498,126.49,126.43,219.27]
[1743360376214,7.9063,126.48,126.43,219.27]
[1743360376415,46.8835498,126.44,126.43,80.97]
[1743360376586,54.6435498,126.44,126.43,80.97]
[1743360377195,46.8835498,126.46,126.43,80.97]
[1743360377401,7.76,126.45,126.44,0.5]
[1743360378407,7.76,126.45,126.43,81.47]
[1743360379797,15.6683,126.45,126.43,81.47]
[1743360379989,356.39317405,126.62,126.43,81.47]
[1743360379990,20.0,126.56,126.44,0.14216157]
[1743360380195,39.5005,126.59,126.44,0.14216157]
[1743360380196,46.8835498,126.6,126.53,0.5]
[1743360380403,46.8835498,126.6,126.53,219.77]
[1743360380607,46.8835498,126.6,126.54,0.5]
[1743360380810,46.8835498,126.59,126.55,0.5]
[1743360381316,7.96,126.62,126.55,0.5]
[1743360381317,46.8835498,126.6,126.55,0.5]
[1743360381497,46.8835498,126.61,126.58,0.5]
[1743360381697,46.8835498,126.61,126.58,219.27]
[1743360381896,46.8835498,126.61,126.58,219.77]
[1743360382099,54.7820498,126.61,126.58,219.27]
[1743360382293,213.8347004,126.69,126.58,219.27]
[1743360382294,26.1340727,126.83,126.77,0.5]
[1743360382506,42.00738765,126.94,126.77,0.5]
[1743360382507,2.8956004,126.94,126.84,0.5]
[1743360382822,46.8835498,126.9,126.84,218.77]
[1743360382997,2.8956004,126.94,126.9,0.5]
[1743360383197,2.8956004,126.94,126.9,218.77]
[1743360383409,1.6191,127.07,126.9,218.77]
[1743360383410,20.0,127.15,126.98,0.5]
[1743360383600,46.8835498,127.14,127.03,0.5]
[1743360383811,46.8835498,127.14,127.03,218.27]
[1743360384014,46.8835498,127.1,127.03,218.27]
[1743360384214,8.98,127.09,127.03,218.27]
[1743360384404,46.8835498,127.04,127.03,79.97]
[1743360384600,46.8835498,127.04,126.99,79.97]
[1743360384799,55.8635498,127.08,126.99,79.97]
[1743360384800,14.95089582,127.0,126.99,218.27]
[1743360384996,14.95089582,127.0,126.94,79.97]
[1743360384997,46.8835498,127.0,126.94,79.97]
[1743360385197,46.8835498,126.95,126.9,257.64764854]
[1743360385507,46.8835498,126.91,126.89,39.19952047]
[1743360385702,93.7670996,126.9,126.89,15.81175933]
[1743360385904,217.94,126.94,126.89,15.81175933]
[1743360386623,93.7670996,126.9,126.89,15.81175933]
[1743360387128,93.7670996,126.9,126.86,39.46983941]
[1743360387331,36.17100604,126.87,126.82,39.72371368]
[1743360387620,46.8835498,126.83,126.82,39.72371368]
[1743360387829,46.8835498,126.83,126.78,0.5]
[1743360387830,55.8835498,126.83,126.79,39.4167972]
[1743360387997,55.8835498,126.83,126.79,177.7167972]
[1743360388193,12.91792686,126.81,126.79,177.7167972]
[1743360388394,12.91792686,126.81,126.77,39.42804343]
[1743360388618,46.8835498,126.82,126.79,39.4167972]
[1743360388821,9.0,126.83,126.79,39.9167972]
[1743360389013,9.0,126.83,126.8,0.5]
[1743360389330,9.0,126.83,126.8,39.37944224]
[1743360389505,9.0,126.83,126.8,39.87944224]
[1743360389705,9.0,126.83,126.8,154.87099934]
[1743360389706,8.96,126.83,126.8,154.87099934]
[1743360389921,46.8835498,126.82,126.8,115.4915571]
[1743360390227,46.8835498,126.81,126.8,230.9831142]
[1743360390521,8.50019905,126.82,126.8,230.9831142]
[1743360391021,46.8835498,126.81,126.8,230.9831142]
[1743360391817,93.7670996,126.81,126.8,230.9831142]
[1743360392034,46.8835498,126.81,126.8,230.9831142]
[1743360392233,54.7693498,126.81,126.8,226.11965952]
[1743360392416,46.8835498,126.81,126.8,226.11965952]
[1743360393303,20.0,126.95,126.82,79.97]
[1743360393504,46.8835498,126.88,126.83,0.5]
[1743360393835,223.9044752,126.94,126.9,0.5]
[1743360394005,223.9044752,126.94,126.9,218.77]
[1743360394611,46.8835498,126.91,126.9,218.27]
[1743360394826,46.8835498,126.91,126.9,79.97]
[1743360396135,46.8835498,126.91,126.85,138.3]
[1743360396136,93.7670996,126.91,126.85,218.27]
[1743360396432,46.8835498,126.86,126.85,79.97]
[1743360396605,55.9235498,126.86,126.85,79.97]
[1743360398611,63.8062498,126.86,126.85,79.97]
[1743360399334,67.0612602,126.86,126.85,79.97]
[1743360399709,67.0912602,126.86,126.85,79.97]
[1743360399910,67.0912602,126.86,126.8,306.15265952]
[1743360400121,46.8835498,126.84,126.8,444.95265952]
[1743360400309,46.8835498,126.83,126.8,444.95265952]
[1743360400507,46.8835498,126.81,126.8,306.15265952]
[1743360400728,8.96,126.81,126.8,306.65265952]
[1743360401308,8.96,126.81,126.8,196.0245571]
[1743360401814,54.7675498,126.84,126.8,196.0245571]
[1743360402009,8.94,126.83,126.8,196.0245571]
[1743360403701,15.50257129,126.82,126.8,196.0245571]
[1743360404134,8.94,126.83,126.8,196.0245571]
[1743360404135,20.65782727,126.83,126.81,0.5]
[1743360404439,20.65782727,126.83,126.82,0.5]
[1743360404605,20.65782727,126.83,126.82,218.77]
[1743360404805,11.71782727,126.83,126.82,218.77]
[1743360405005,3.2850104,126.86,126.82,218.77]
[1743360405231,8.88,126.85,126.83,0.5]
[1743360405432,3.2850104,126.86,126.83,218.77]
[1743360405640,12.1650104,126.86,126.83,218.77]
[1743360405839,12.1650104,126.86,126.83,218.27]
[1743360406019,59.0485602,126.86,126.83,218.77]
[1743360406833,12.1650104,126.86,126.83,218.77]
[1743360407531,3.2850104,126.86,126.83,218.77]
[1743360407738,20.67009507,126.87,126.86,76.6849896]
[1743360408051,46.8835498,126.91,126.86,76.6849896]
[1743360408052,8.84,126.91,126.86,215.4849896]
[1743360408334,46.8835498,126.93,126.89,0.5]
[1743360408516,2.8294648,126.94,126.93,0.5]
[1743360408710,2.8294648,126.94,126.93,214.9849896]
[1743360408910,10.7071648,126.94,126.93,214.9849896]
[1743360409332,57.5907146,126.94,126.93,214.9849896]
[1743360409732,66.4507146,126.94,126.93,76.6849896]
[1743360411128,11.6894648,126.94,126.93,76.6849896]
[1743360411428,10.7075648,126.94,126.93,76.6849896]
[1743360411929,46.8835498,126.94,126.9,138.3]
[1743360412108,46.8835498,126.91,126.88,169.4140896]
[1743360412310,264.3835498,126.96,126.88,169.4140896]
[1743360412311,55.7435498,126.9,126.88,169.4140896]
[1743360412508,8.86,126.89,126.88,169.4140896]
[1743360413114,63.6243498,126.89,126.88,169.4140896]
[1743360413324,63.6243498,126.89,126.88,128.8949896]
[1743360413646,83.3264498,126.89,126.82,89.2049896]
[1743360413846,46.8835498,126.87,126.82,170.2049896]
[1743360414036,46.8835498,126.86,126.82,169.7049896]
[1743360414419,8.82,126.94,126.87,81.5]
[1743360414634,55.7035498,126.94,126.87,170.2049896]
[1743360414842,46.8835498,126.93,126.87,169.7049896]
[1743360415147,46.8835498,126.92,126.87,169.7049896]
[1743360415347,46.8835498,126.9,126.87,169.7049896]
[1743360415647,46.8835498,126.9,126.82,0.5]
[1743360415648,46.8835498,126.88,126.82,0.5]
[1743360415946,46.8835498,126.87,126.82,170.2049896]
[1743360416147,46.8835498,126.87,126.83,0.5]
[1743360416346,46.8835498,126.88,126.83,0.5]
[1743360416644,7.882,126.87,126.82,170.2049896]
[1743360416837,7.882,126.87,126.83,0.5]
[1743360417059,74.4707498,126.87,126.82,170.2049896]
[1743360417429,46.8835498,126.86,126.82,170.2049896]
[1743360417647,46.8835498,126.85,126.82,81.0]
[1743360417940,55.7435498,126.84,126.82,81.0]
[1743360418730,0.03,126.99,126.86,0.28432314]
[1743360418933,0.03,126.99,126.94,0.5]
[1743360418934,27.5633,126.98,126.94,0.5]
[1743360419233,27.5633,126.98,126.97,0.5]
[1743360419234,7.8752,126.98,126.97,0.5]
[1743360419428,7.8752,126.98,126.97,81.5]
[1743360420040,7.8752,126.98,126.97,81.0]
[1743360420239,7.9046,126.99,126.97,81.0]
[1743360420748,18.64964886,126.97,126.91,0.5]
[1743360420956,46.8835498,126.94,126.9,0.5]
[1743360421137,46.8835498,126.94,126.9,89.2049896]
[1743360421532,46.8835498,126.93,126.89,130.2490896]
[1743360421846,55.9035498,126.96,126.89,130.2490896]
[1743360421847,46.8835498,126.91,126.89,130.2490896]
[1743360422154,46.8835498,126.9,126.86,0.5]
[1743360422453,46.8835498,126.89,126.84,0.5]
[1743360422624,46.8835498,126.89,126.85,0.5]
[1743360422826,46.8835498,126.87,126.83,130.3120896]
[1743360423050,9.0,126.86,126.83,130.3120896]
[1743360423439,9.0,126.86,126.85,0.5]
[1743360423749,7.8802,126.9,126.88,0.5]
[1743360424052,74.4642498,126.9,126.85,89.2049896]
[1743360424237,46.8835498,126.89,126.85,89.2049896]
[1743360424427,27.585,126.88,126.85,89.2049896]
[1743360424627,27.585,126.88,126.85,130.2490896]
[1743360424839,27.585,126.88,126.86,0.5]
[1743360425054,27.585,126.88,126.86,41.0441]
[1743360425055,74.4685498,126.88,126.86,41.0441]
[1743360425971,46.8835498,126.87,126.83,41.1071]
[1743360426132,46.8835498,126.85,126.83,41.1071]
[1743360426445,7.8839,126.84,126.83,41.1071]
[1743360427436,54.7674498,126.84,126.83,41.1071]
[1743360428446,54.7674498,126.84,126.83,0.3917]
[1743360428646,121.3607996,126.84,126.8,285.2595467]
[1743360428846,46.8835498,126.81,126.8,196.5545571]
[1743360429031,55.8035498,126.81,126.8,196.5545571]
[1743360429456,63.6893498,126.81,126.8,29.5184571]
[1743360429636,63.6893498,126.81,126.8,5.71e-05]
[1743360430054,82.33899866,126.81,126.8,5.71e-05]
[1743360430957,102.05349866,126.81,126.77,177.70352563]
[1743360431136,46.8835498,126.78,126.77,137.92232563]
[1743360431460,54.7711498,126.78,126.77,98.02352563]
[1743360431833,101.6546996,126.78,126.77,56.94292563]
[1743360432155,54.7711498,126.78,126.76,35.65224367]
[1743360432364,65.53319866,126.77,126.76,4.367e-05]
[1743360433666,89.46954371,126.77,126.76,4.367e-05]
[1743360433960,20.0,126.74,126.73,161.68817995]
[1743360434160,75.7235498,126.74,126.73,161.68817995]
[1743360434658,91.77159485,126.74,126.73,161.68817995]
[1743360434860,157.30479351,126.74,126.73,75.55377995]
[1743360435037,157.30479351,126.74,126.73,7.995e-05]
[1743360435460,18.64964886,126.73,126.68,235.71826805]
[1743360435658,65.53319866,126.69,126.68,235.71826805]
[1743360435840,74.35319866,126.69,126.68,235.71826805]
[1743360436739,299.14124371,126.69,126.68,235.71826805]
[1743360438142,307.03444371,126.69,126.68,235.71826805]
[1743360440847,224.78804505,126.69,126.68,235.71826805]
[1743360441152,292.39087694,126.69,126.68,235.71826805]
[1743360441848,292.39087694,126.69,126.68,236.21826805]
[1743360441849,283.63087694,126.69,126.68,236.21826805]
[1743360443168,283.63087694,126.69,126.68,235.71826805]
[1743360443345,224.78804505,126.69,126.68,235.71826805]
[1743360444963,54.10868134,126.69,126.68,235.71826805]
[1743360445266,62.00188134,126.69,126.68,235.71826805]
[1743360445667,108.88543114,126.69,126.68,235.71826805]
[1743360446046,138.2337767,126.69,126.68,235.71826805]
[1743360447451,159.63117011,126.69,126.68,235.71826805]
[1743360448854,110.87183712,126.69,126.68,235.71826805]
[1743360450347,110.87183712,126.69,126.68,195.97176805]
[1743360450547,110.87183712,126.69,126.68,100.79786805]
[1743360450851,20.0,126.65,126.63,207.88480279]
[1743360451055,99.53950195,126.64,126.63,207.88480279]
[1743360451566,99.53950195,126.64,126.63,167.95480279]
[1743360451772,99.53950195,126.64,126.63,77.45150279]
[1743360452266,99.53950195,126.64,126.63,2.79e-06]
[1743360452470,107.43580195,126.64,126.63,2.79e-06]
[1743360452655,144.88124041,126.64,126.63,2.79e-06]
[1743360454055,134.18254371,126.64,126.63,2.79e-06]
[1743360456663,181.06609351,126.64,126.63,2.79e-06]
[1743360458065,87.29899391,126.64,126.63,2.79e-06]
[1743360458465,65.9016005,126.64,126.63,2.79e-06]
[1743360462564,85.9016005,126.64,126.63,2.79e-06]
[1743360462985,20.0,126.6,126.59,61.11813202]
[1743360463296,38.64964886,126.6,126.59,61.11813202]
[1743360463590,62.59649391,126.6,126.59,61.11813202]
[1743360464090,156.36359351,126.6,126.59,61.11813202]
[1743360464473,193.80903199,126.6,126.59,61.11813202]
[1743360465685,193.80903199,126.6,126.59,21.14863202]
[1743360465885,18.64964886,126.59,126.58,212.46244623]
[1743360466087,73.95319866,126.59,126.58,212.46244623]
[1743360466585,73.95319866,126.59,126.58,172.49864623]
[1743360466783,84.65189536,126.59,126.58,132.51484623]
[1743360466962,90.00124371,126.59,126.58,92.84704623]
[1743360468390,97.90074371,126.59,126.58,7.34334623]
[1743360468590,97.90074371,126.59,126.58,4.623e-05]
[1743360470494,51.01719391,126.59,126.58,4.623e-05]
[1743360470694,97.90074371,126.59,126.58,4.623e-05]
[1743360471004,38.64964886,126.56,126.55,4.623e-05]
[1743360471296,18.64964886,126.55,126.52,190.76316044]
[1743360471494,55.2435498,126.54,126.52,190.76316044]
[1743360471706,46.8835498,126.53,126.52,190.76316044]
[1743360471993,73.89319866,126.53,126.52,150.83176044]
[1743360472197,73.89319866,126.53,126.52,105.05326044]
[1743360472569,81.79639866,126.53,126.52,105.05326044]
[1743360473369,97.84444371,126.53,126.52,105.05326044]
[1743360473582,97.84444371,126.53,126.52,64.66166044]
[1743360473996,151.54058247,126.53,126.52,23.57506044]
[1743360474177,151.54058247,126.53,126.52,6.044e-05]
[1743360475596,188.98602095,126.53,126.52,6.044e-05]
[1743360476374,18.64964886,126.52,126.5,6.044e-05]
[1743360476574,73.43769866,126.51,126.5,6.044e-05]
[1743360477706,73.43769866,126.51,126.47,0.563]
[1743360477890,55.1835498,126.5,126.47,0.563]
[1743360478196,8.3,126.49,126.47,0.563]
[1743360478602,7.9063,126.48,126.47,0.563]
[1743360479286,23.95434505,126.48,126.47,0.563]
[1743360479604,32.23434505,126.48,126.47,0.563]
[1743360479807,32.23434505,126.48,126.46,302.28760156]
[1743360480304,79.11789485,126.48,126.46,302.28760156]
[1743360480882,46.8835498,126.47,126.46,302.28760156]
[1743360481186,62.93159485,126.47,126.46,302.28760156]
[1743360481381,81.58124371,126.47,126.46,262.41690156]
[1743360481589,81.58124371,126.47,126.46,165.09310156]
[1743360481786,81.58124371,126.47,126.46,55.23500156]
[1743360481990,81.58124371,126.47,126.46,53.13640156]
[1743360482203,81.58124371,126.47,126.46,51.03780156]
[1743360483604,18.64964886,126.42,126.4,230.98311421]
[1743360483783,73.77319866,126.41,126.4,230.98311421]
[1743360484877,73.77319866,126.41,126.4,189.55381421]
[1743360485087,73.77319866,126.41,126.4,148.55021421]
[1743360485088,97.73194371,126.41,126.4,148.55021421]
[1743360485297,97.73194371,126.41,126.4,107.70801421]
[1743360487080,89.49194371,126.41,126.4,107.70801421]
[1743360487306,97.69194371,126.41,126.4,107.70801421]
[1743360487790,135.13738219,126.41,126.4,107.70801421]
[1743360490406,220.97014211,126.41,126.4,107.70801421]
[1743360491705,205.43133902,126.41,126.4,107.70801421]
[1743360492298,155.43694345,126.41,126.4,107.70801421]
[1743360492801,147.52624345,126.41,126.4,107.70801421]
[1743360493008,147.48624345,126.41,126.4,107.70801421]